[Event "Prague Open 2025"]
[Site "Prague"]
[Date "2025.01.11"]
[Round "3.14"]
[White "Mueer, Sebastian"]
[Black "Jiricek, Jakub"]
[Result "1/2-1/2"]
[Annotator "RC"]
[ECO "D35"]
[WhiteElo "2192"]
[BlackElo "1968"]
[PlyCount "77"]
[EventDate "2025.01.07"]
[EventType "swiss"]
[EventCountry "CZE"]
[SourceTitle "playchess.com"]
[Source "ChessBase"]
[SourceQuality "1"]
[TimeControl "40/5400+30:1800+30"]

1. d4 {[%emt 0:00:03]} d5 {[%emt 0:00:12]} 2. c4 {[%emt 0:00:08]} e6 {[%emt 0:00:46]} 3. Nc3 {[%emt 0:00:16]} Nf6 {[%emt 0:00:27]} 4. cxd5 {[%emt 0:00:09]} exd5 {[%emt 0:00:22]} 5. Bg5 {[%emt 0:00:12]} Be7 {[%emt 0:01:06]} 6. e3 {[%emt 0:00:12]} O-O {[%emt 0:01:18]} 7. Bd3 {[%emt 0:00:26]} Nbd7 {[%emt 0:00:44]} 8. Nf3 {[%emt 0:00:19]} Re8 {[%emt 0:01:48]} 9. O-O {[%emt 0:00:38]} c6 {[%emt 0:02:33]} 10. Qc2 {[%emt 0:00:30]} Nf8 {[%emt 0:01:20]} 11. h3 {[%emt 0:03:39]} Ng6 {[%emt 0:13:25]} 12. Ne5 {[%emt 0:02:21]} Nd7 {[%emt 0:06:05]} 13. Bxe7 {[%emt 0:01:33]} Rxe7 {[%emt 0:04:01]} 14. f4 {[%emt 0:03:55]} Ndf8 {[%emt 0:03:37]} 15. Rae1 {[%emt 0:05:00]} Qe8 {[%emt 0:01:29]} 16. e4 {[%emt 0:11:12]} f6 {[%emt 0:07:54]} 17. Nxg6 {[%emt 0:14:46]} hxg6 {[%emt 0:01:34]} 18. Qf2 {[%emt 0:04:19]} dxe4 {[%emt 0:02:40]} 19. Nxe4 {[%emt 0:00:51]} Be6 {[%emt 0:16:33]} 20. Nc5 {[%emt 0:14:11]} Bd5 {[%emt 0:03:02]} 21. Nxb7 {[%emt 0:00:52]} Bxa2 {[%emt 0:02:49]} 22. f5 {[%emt 0:04:53]} gxf5 {[%emt 0:04:08]} 23. Nd6 {[%emt 0:00:46]} Qd7 {[%emt 0:02:04]} 24. Rxe7 {[%emt 0:02:18]} Qxe7 {[%emt 0:01:04]} 25. Nxf5 {[%emt 0:02:02]} Qd7 {[%emt 0:02:59]} 26. Re1 {[%emt 0:07:22]} Re8 {[%emt 0:01:30]} 27. Rxe8 {[%emt 0:06:16]} Qxe8 {[%emt 0:00:15]} 28. Qg3 {[%emt 0:00:55]} Qd7 {[%emt 0:01:47]} 29. Be4 {[%emt 0:02:49]} Bd5 {[%emt 0:09:35]} 30. Bxd5+ {[%emt 0:00:50]} cxd5 {[%emt 0:00:10]} 31. Qg4 {[%emt 0:04:18]} Qb7 {[%emt 0:01:31]} 32. h4 {[%emt 0:03:02]} g6 {[%emt 0:01:50]} 33. h5 {[%emt 0:01:00]} Qxb2 {[%emt 0:03:27]} 34. Ne7+ {[%emt 0:02:15]} Kg7 {[%emt 0:00:28]} 35. Nxg6 {[%emt 0:02:24]} Qb1+ {[%emt 0:00:25]} 36. Kh2 {[%emt 0:00:49]} Nxg6 {[%emt 0:00:31]} 37. Qd7+ {[%emt 0:00:29]} Kh6 {[%emt 0:01:12]} 38. hxg6 {[%emt 0:00:10]} Qxg6 {[%emt 0:00:35]} 39. Qxa7 {[%emt 0:00:20]} 1/2-1/2

[Event "Prague Open 2025"]
[Site "Prague"]
[Date "2025.01.11"]
[Round "3.15"]
[White "Verner, Matej"]
[Black "Moser, Axel"]
[Result "0-1"]
[Annotator "RC"]
[ECO "B13"]
[WhiteElo "1948"]
[BlackElo "2160"]
[PlyCount "68"]
[EventDate "2025.01.07"]
[EventType "swiss"]
[EventCountry "CZE"]
[SourceTitle "playchess.com"]
[Source "ChessBase"]
[SourceQuality "1"]
[TimeControl "40/5400+30:1800+30"]

1. e4 {[%emt 0:15:00]} c6 {[%emt 0:00:09]} 2. d4 {[%emt 0:00:07]} d5 {[%emt 0:00:10]} 3. exd5 {[%emt 0:00:02]} cxd5 {[%emt 0:00:12]} 4. Bd3 {[%emt 0:00:03]} Nc6 {[%emt 0:00:26]} 5. c3 {[%emt 0:00:00]} e6 {[%emt 0:00:40]} 6. Bf4 {[%emt 0:00:21]} Bd6 {[%emt 0:00:28]} 7. Bxd6 {[%emt 0:00:12]} Qxd6 {[%emt 0:00:07]} 8. Nf3 {[%emt 0:00:01]} Nge7 {[%emt 0:00:35]} 9. O-O {[%emt 0:00:06]} O-O {[%emt 0:02:04]} 10. Nbd2 {[%emt 0:00:17]} f6 {[%emt 0:05:20]} 11. c4 {[%emt 0:04:31]} Kh8 {[%emt 0:03:40]} 12. Re1 {[%emt 0:01:29]} Bd7 {[%emt 0:00:38]} 13. cxd5 {[%emt 0:13:12]} exd5 {[%emt 0:00:26]} 14. Qb1 {[%emt 0:06:13]} g6 {[%emt 0:08:16]} 15. h4 {[%emt 0:09:58]} Nb4 {[%emt 0:06:18]} 16. h5 {[%emt 0:02:19]} Nxd3 {[%emt 0:03:24]} 17. Qxd3 {[%emt 0:02:43]} Rae8 {[%emt 0:01:42]} 18. Rac1 {[%emt 0:06:34]} gxh5 {[%emt 0:06:52]} 19. Nh4 {[%emt 0:03:09]} Qf4 {[%emt 0:04:51]} 20. g3 {[%emt 0:01:24]} Rg8 {[%emt 0:01:29]} 21. Ng6+ {[%emt 0:11:20]} Rxg6 {[%emt 0:08:37]} 22. Qxg6 {[%emt 0:00:08]} Qxd2 {[%emt 0:01:50]} 23. Qxf6+ {[%emt 0:00:22]} Kg8 {[%emt 0:00:28]} 24. Red1 {[%emt 0:04:01]} Qxb2 {[%emt 0:04:32]} 25. Qg5+ {[%emt 0:05:18]} Ng6 {[%emt 0:01:06]} 26. Qxd5+ {[%emt 0:02:35]} Be6 {[%emt 0:00:34]} 27. Qxh5 {[%emt 0:01:41]} Rf8 {[%emt 0:01:27]} 28. f4 {[%emt 0:02:22]} Qxa2 {[%emt 0:02:37]} 29. Rc7 {[%emt 0:04:39]} Rf7 {[%emt 0:01:50]} 30. Rxf7 {[%emt 0:01:23]} Bxf7 {[%emt 0:00:08]} 31. f5 {[%emt 0:02:01]} Bd5 {[%emt 0:00:22]} 32. Qh3 {[%emt 0:01:09]} Qe2 {[%emt 0:04:05]} 33. Rf1 {[%emt 0:00:54]} Nf8 {[%emt 0:03:57]} 34. f6 {[%emt 0:01:11]} Kf7 {[%emt 0:02:29]} 0-1

[Event "Prague Open 2025"]
[Site "Prague"]
[Date "2025.01.11"]
[Round "3.16"]
[White "Kulhanek, Tomas"]
[Black "Dyshliuk, Fedir"]
[Result "1-0"]
[Annotator "ChessBase"]
[ECO "B12"]
[WhiteElo "2313"]
[BlackElo "1941"]
[PlyCount "87"]
[EventDate "2025.01.07"]
[EventType "swiss"]
[EventCountry "CZE"]
[SourceTitle "playchess.com"]
[Source "ChessBase"]
[SourceQuality "1"]
[TimeControl "40/5400+30:1800+30"]

1. e4 {[%emt 0:07:27]} c6 {[%emt 0:00:11]} 2. d4 {[%emt 0:00:13]} d5 3. e5 {[%emt 0:00:08]} c5 {[%emt 0:00:46]} 4. dxc5 {[%emt 0:02:11]} e6 {[%emt 0:00:11]} 5. Nf3 {[%emt 0:00:17]} Bxc5 {[%emt 0:00:38]} 6. Bd3 {[%emt 0:00:04]} h6 {[%emt 0:03:25]} 7. O-O {[%emt 0:00:26]} Ne7 {[%emt 0:00:41]} 8. Nbd2 {[%emt 0:00:16]} Nbc6 {[%emt 0:00:45]} 9. Nb3 {[%emt 0:00:40]} Bb6 {[%emt 0:00:19]} 10. Re1 {[%emt 0:01:17]} O-O {[%emt 0:01:13]} 11. Be3 {[%emt 0:03:42]} Qc7 {[%emt 0:11:51]} 12. Bxb6 {[%emt 0:02:03]} Qxb6 {[%emt 0:00:18]} 13. Qd2 {[%emt 0:10:26]} Bd7 {[%emt 0:02:54]} 14. c3 {[%emt 0:01:20]} a5 {[%emt 0:04:53]} 15. Nbd4 {[%emt 0:01:06]} Nxd4 {[%emt 0:03:48]} 16. Nxd4 {[%emt 0:00:19]} f6 {[%emt 0:14:30]} 17. Bc2 {[%emt 0:08:47]} fxe5 {[%emt 0:01:19]} 18. Rxe5 {[%emt 0:00:10]} Rf6 {[%emt 0:00:33]} 19. Kh1 {[%emt 0:05:51]} Raf8 {[%emt 0:04:59]} 20. f3 {[%emt 0:00:28]} Ng6 {[%emt 0:03:26]} 21. Bxg6 {[%emt 0:00:56]} Rxg6 {[%emt 0:00:12]} 22. Rae1 {[%emt 0:01:18]} Qd6 {[%emt 0:05:30]} 23. Qe3 {[%emt 0:01:51]} Re8 {[%emt 0:01:07]} 24. h3 {[%emt 0:02:55]} Qb6 {[%emt 0:05:33]} 25. Re2 {[%emt 0:07:17]} Bb5 {[%emt 0:02:33]} 26. Nxe6 {[%emt 0:13:02]} d4 {[%emt 0:08:11]} 27. Qe4 {[%emt 0:06:35]} Rf6 {[%emt 0:09:50]} 28. Qd5 {[%emt 0:06:41]} Kh8 {[%emt 0:09:30]} 29. Qxb5 {[%emt 0:02:21]} Qxb5 {[%emt 0:00:39]} 30. Rxb5 {[%emt 0:00:05]} Rfxe6 {[%emt 0:00:09]} 31. Rxe6 {[%emt 0:00:14]} Rxe6 {[%emt 0:00:07]} 32. cxd4 {[%emt 0:00:44]} b6 {[%emt 0:00:05]} 33. Kg1 {[%emt 0:01:04]} Kg8 {[%emt 0:02:07]} 34. Kf2 {[%emt 0:00:16]} Kf7 {[%emt 0:00:06]} 35. Rf5+ {[%emt 0:01:45]} Kg6 {[%emt 0:00:57]} 36. Re5 {[%emt 0:01:01]} Rd6 {[%emt 0:00:21]} 37. d5 {[%emt 0:00:50]} Kf6 {[%emt 0:00:33]} 38. f4 {[%emt 0:00:50]} g5 {[%emt 0:00:08]} 39. Kf3 {[%emt 0:00:40]} b5 {[%emt 0:01:16]} 40. Re6+ {[%emt 0:02:56]} Rxe6 {[%emt 0:00:08]} 41. dxe6 {[%emt 0:30:04]} Kxe6 {[%emt 0:30:05]} 42. fxg5 {[%emt 0:00:23]} hxg5 {[%emt 0:00:09]} 43. Kg4 {[%emt 0:00:09]} Kf6 {[%emt 0:00:10]} 44. h4 {[%emt 0:04:26]} 1-0

[Event "Prague Open 2025"]
[Site "Prague"]
[Date "2025.01.11"]
[Round "3.17"]
[White "Pourquet, Matthieu"]
[Black "Piotraschke, Jens"]
[Result "1-0"]
[Annotator "RC"]
[ECO "A18"]
[WhiteElo "2262"]
[BlackElo "2048"]
[PlyCount "63"]
[EventDate "2025.01.07"]
[EventType "swiss"]
[EventCountry "CZE"]
[SourceTitle "playchess.com"]
[Source "ChessBase"]
[SourceQuality "1"]
[TimeControl "40/5400+30:1800+30"]

1. c4 {[%emt 0:02:43]} Nf6 {[%emt 0:00:15]} 2. Nc3 {[%emt 0:00:41]} e6 {[%emt 0:00:12]} 3. e4 {[%emt 0:00:37]} d5 {[%emt 0:00:06]} 4. cxd5 {[%emt 0:00:09]} exd5 {[%emt 0:00:13]} 5. e5 {[%emt 0:00:16]} Ne4 {[%emt 0:01:38]} 6. Nf3 {[%emt 0:01:39]} c6 {[%emt 0:05:48]} 7. d3 {[%emt 0:01:00]} Nxc3 {[%emt 0:02:56]} 8. bxc3 {[%emt 0:00:12]} Be7 {[%emt 0:01:53]} 9. d4 {[%emt 0:00:12]} b5 {[%emt 0:12:35]} 10. Bd3 {[%emt 0:00:58]} Bg4 {[%emt 0:04:15]} 11. O-O {[%emt 0:00:21]} Nd7 {[%emt 0:07:05]} 12. h3 {[%emt 0:02:51]} Be6 {[%emt 0:02:24]} 13. Ne1 {[%emt 0:01:13]} Qb6 {[%emt 0:07:05]} 14. f4 {[%emt 0:01:56]} g6 {[%emt 0:00:08]} 15. Nf3 {[%emt 0:02:44]} h5 {[%emt 0:01:51]} 16. Be3 {[%emt 0:01:16]} O-O-O {[%emt 0:04:44]} 17. a4 {[%emt 0:00:49]} a6 {[%emt 0:00:10]} 18. Qe2 {[%emt 0:03:21]} Kc7 {[%emt 0:03:07]} 19. Rfb1 {[%emt 0:01:07]} Rb8 {[%emt 0:01:04]} 20. Nd2 {[%emt 0:05:05]} Kd8 {[%emt 0:07:21]} 21. Kh1 {[%emt 0:03:32]} Qb7 {[%emt 0:02:12]} 22. c4 {[%emt 0:02:42]} dxc4 {[%emt 0:05:43]} 23. Bxc4 {[%emt 0:00:13]} Bxc4 {[%emt 0:01:18]} 24. Nxc4 {[%emt 0:00:04]} Qc7 {[%emt 0:04:16]} 25. axb5 {[%emt 0:03:17]} axb5 {[%emt 0:02:23]} 26. Na5 {[%emt 0:00:41]} Ra8 {[%emt 0:01:14]} 27. Bd2 {[%emt 0:00:38]} b4 {[%emt 0:03:00]} 28. Nc4 {[%emt 0:02:31]} Rxa1 {[%emt 0:00:09]} 29. Rxa1 {[%emt 0:00:04]} Re8 {[%emt 0:01:36]} 30. Ra8+ {[%emt 0:10:54]} Nb8 {[%emt 0:00:07]} 31. Na5 {[%emt 0:00:39]} b3 {[%emt 0:05:26]} 32. Rxb8+ {[%emt 0:01:07]} 1-0

[Event "Prague Open 2025"]
[Site "Prague"]
[Date "2025.01.11"]
[Round "3.18"]
[White "Zhukovskyi, Oleksandr"]
[Black "Amonov, Daler"]
[Result "1-0"]
[Annotator "RC"]
[ECO "B40"]
[WhiteElo "2162"]
[BlackElo "2004"]
[PlyCount "151"]
[EventDate "2025.01.07"]
[EventType "swiss"]
[EventCountry "CZE"]
[SourceTitle "playchess.com"]
[Source "ChessBase"]
[SourceQuality "1"]
[TimeControl "40/5400+30:1800+30"]

1. e4 {[%emt 0:00:03]} c5 {[%emt 0:02:59]} 2. Nf3 {[%emt 0:00:13]} e6 {[%emt 0:00:07]} 3. c4 {[%emt 0:00:10]} d5 {[%emt 0:04:45]} 4. cxd5 {[%emt 0:06:26]} exd5 {[%emt 0:00:15]} 5. exd5 {[%emt 0:00:51]} a6 {[%emt 0:06:01]} 6. Qa4+ {[%emt 0:12:33]} Nd7 {[%emt 0:12:02]} 7. d4 {[%emt 0:10:13]} Ngf6 {[%emt 0:02:23]} 8. Nc3 {[%emt 0:04:21]} Bd6 {[%emt 0:14:47]} 9. dxc5 {[%emt 0:03:17]} Bxc5 {[%emt 0:00:11]} 10. Be2 {[%emt 0:20:43]} O-O {[%emt 0:00:29]} 11. O-O {[%emt 0:00:31]} b5 {[%emt 0:01:43]} 12. Nxb5 {[%emt 0:02:50]} Nb6 {[%emt 0:01:07]} 13. Qc2 {[%emt 0:00:19]} Bxf2+ {[%emt 0:01:51]} 14. Rxf2 {[%emt 0:01:02]} axb5 {[%emt 0:00:02]} 15. Bxb5 {[%emt 0:00:46]} Nbxd5 {[%emt 0:00:27]} 16. Bg5 {[%emt 0:04:44]} Bb7 {[%emt 0:02:35]} 17. Bc4 {[%emt 0:11:17]} Qb6 {[%emt 0:23:12]} 18. Bxf6 {[%emt 0:10:47]} Nxf6 {[%emt 0:00:23]} 19. Kh1 {[%emt 0:03:12]} Rae8 {[%emt 0:02:33]} 20. Rff1 {[%emt 0:05:40]} Ng4 {[%emt 0:01:05]} 21. Qb3 {[%emt 0:00:20]} Qc7 {[%emt 0:02:47]} 22. Bd5 {[%emt 0:00:41]} Bxd5 {[%emt 0:03:19]} 23. Qxd5 {[%emt 0:00:01]} Ne3 {[%emt 0:00:02]} 24. Qd3 {[%emt 0:00:10]} Nxf1 {[%emt 0:00:06]} 25. Rxf1 {[%emt 0:00:04]} h6 {[%emt 0:01:36]} 26. b4 {[%emt 0:01:29]} Qa7 {[%emt 0:01:26]} 27. Qc4 {[%emt 0:00:45]} Ra8 {[%emt 0:01:42]} 28. Ra1 {[%emt 0:00:31]} Qf2 {[%emt 0:00:24]} 29. Qb3 {[%emt 0:00:29]} Rae8 {[%emt 0:00:48]} 30. a4 {[%emt 0:00:28]} Re2 {[%emt 0:03:34]} 31. Rg1 {[%emt 0:00:14]} Rc8 {[%emt 0:02:33]} 32. Qd5 {[%emt 0:00:20]} Rc1 {[%emt 0:05:49]} 33. Qd8+ {[%emt 0:00:54]} Kh7 {[%emt 0:00:02]} 34. Qd3+ {[%emt 0:00:24]} g6 {[%emt 0:00:19]} 35. Qxe2 {[%emt 0:00:29]} Qxe2 {[%emt 0:00:01]} 36. Rxc1 {[%emt 0:00:05]} Qb2 {[%emt 0:00:10]} 37. Rf1 {[%emt 0:01:07]} Qxb4 {[%emt 0:00:45]} 38. Ne5 {[%emt 0:00:29]} f5 {[%emt 0:00:20]} 39. Nf3 {[%emt 0:00:31]} Qxa4 {[%emt 0:00:08]} 40. h4 {[%emt 0:00:22]} Kg7 {[%emt 0:00:38]} 41. Rb1 {[%emt 0:30:38]} Qc6 {[%emt 0:31:34]} 42. Ra1 {[%emt 0:00:30]} Kf6 {[%emt 0:01:25]} 43. Ra7 {[%emt 0:00:24]} Qc1+ {[%emt 0:01:42]} 44. Kh2 {[%emt 0:00:03]} g5 {[%emt 0:00:49]} 45. Ra6+ {[%emt 0:00:56]} Kg7 {[%emt 0:00:10]} 46. Ra7+ {[%emt 0:00:00]} Kf8 {[%emt 0:00:00]} 47. Ra8+ {[%emt 0:00:00]} Ke7 {[%emt 0:00:00]} 48. Ra7+ {[%emt 0:00:00]} Kd8 {[%emt 0:00:00]} 49. Ra8+ {[%emt 0:00:00]} Kc7 {[%emt 0:00:00]} 50. hxg5 {[%emt 0:00:00]} hxg5 {[%emt 0:00:00]} 51. Ra5 {[%emt 0:00:00]} Qf4+ {[%emt 0:00:00]} 52. Kg1 {[%emt 0:00:00]} g4 {[%emt 0:00:00]} 53. Ne1 {[%emt 0:00:00]} g3 {[%emt 0:00:00]} 54. Rc5+ {[%emt 0:00:00]} Kb6 {[%emt 0:00:00]} 55. Rc2 {[%emt 0:00:00]} Kb5 {[%emt 0:00:00]} 56. Rc5+ {[%emt 0:03:35]} Ka4 {[%emt 0:00:00]} 57. Rc2 {[%emt 0:00:57]} Qd4+ {[%emt 0:00:00]} 58. Kf1 {[%emt 0:00:19]} Kb3 {[%emt 0:00:00]} 59. Re2 {[%emt 0:01:14]} Qh4 {[%emt 0:00:00]} 60. Re3+ {[%emt 0:01:32]} Kc4 {[%emt 0:00:00]} 61. Nf3 {[%emt 0:00:29]} Qf4 {[%emt 0:01:27]} 62. Re1 {[%emt 0:00:23]} Qh6 {[%emt 0:01:11]} 63. Re5 {[%emt 0:00:35]} Qb6 {[%emt 0:03:44]} 64. Re2 {[%emt 0:00:32]} Kc3 {[%emt 0:02:50]} 65. Ne1 {[%emt 0:00:31]} Qh6 {[%emt 0:01:27]} 66. Nf3 {[%emt 0:00:05]} Qh1+ {[%emt 0:00:12]} 67. Ng1 {[%emt 0:00:05]} Kd3 {[%emt 0:00:57]} 68. Re6 {[%emt 0:01:19]} Qh8 {[%emt 0:00:44]} 69. Nf3 {[%emt 0:00:12]} Qh1+ {[%emt 0:00:19]} 70. Ng1 {[%emt 0:00:02]} f4 {[%emt 0:00:21]} 71. Re2 {[%emt 0:01:08]} Qh8 {[%emt 0:00:21]} 72. Re1 {[%emt 0:00:38]} Qd4 {[%emt 0:00:53]} 73. Rd1+ {[%emt 0:00:05]} Ke3 {[%emt 0:00:36]} 74. Rxd4 {[%emt 0:00:12]} Kxd4 {[%emt 0:00:04]} 75. Ke2 {[%emt 0:00:14]} Ke4 {[%emt 0:00:11]} 76. Nh3 1-0

[Event "Prague Open 2025"]
[Site "Prague"]
[Date "2025.01.11"]
[Round "3.19"]
[White "Mannion, Stephen R"]
[Black "Kapolkova, Greta"]
[Result "1-0"]
[Annotator "RC"]
[ECO "B93"]
[WhiteElo "2159"]
[BlackElo "1926"]
[PlyCount "39"]
[EventDate "2025.01.07"]
[EventType "swiss"]
[EventCountry "CZE"]
[SourceTitle "playchess.com"]
[Source "ChessBase"]
[SourceQuality "1"]
[TimeControl "40/5400+30:1800+30"]

1. e4 {[%emt 0:00:16]} c5 {[%emt 0:05:52]} 2. Nf3 {[%emt 0:00:05]} d6 {[%emt 0:00:05]} 3. d4 {[%emt 0:00:06]} cxd4 {[%emt 0:00:04]} 4. Nxd4 {[%emt 0:00:05]} Nf6 {[%emt 0:00:06]} 5. Nc3 {[%emt 0:00:05]} a6 {[%emt 0:00:06]} 6. f4 {[%emt 0:00:13]} Qc7 {[%emt 0:04:18]} 7. f5 {[%emt 0:02:48]} b5 {[%emt 0:06:29]} 8. g4 {[%emt 0:02:30]} Nc6 {[%emt 0:17:10]} 9. Nxc6 {[%emt 0:08:25]} Qxc6 {[%emt 0:00:12]} 10. Bg2 {[%emt 0:00:26]} g6 {[%emt 0:07:12]} 11. g5 {[%emt 0:20:23]} Nd7 {[%emt 0:01:06]} 12. O-O {[%emt 0:10:24]} Ne5 {[%emt 0:03:46]} 13. Nd5 {[%emt 0:02:36]} Bd7 {[%emt 0:13:33]} 14. Be3 {[%emt 0:02:02]} Rc8 {[%emt 0:01:06]} 15. Rc1 {[%emt 0:03:38]} Rb8 {[%emt 0:04:55]} 16. b3 {[%emt 0:06:54]} Qc8 {[%emt 0:00:43]} 17. Bd4 {[%emt 0:08:22]} gxf5 {[%emt 0:01:58]} 18. exf5 {[%emt 0:00:39]} Bxf5 {[%emt 0:00:42]} 19. Bxe5 {[%emt 0:01:04]} dxe5 {[%emt 0:00:18]} 20. Rxf5 {[%emt 0:00:41]} 1-0

[Event "Prague Open 2025"]
[Site "Prague"]
[Date "2025.01.11"]
[Round "3.20"]
[White "Rindhiya V"]
[Black "Fizerova, Lucie"]
[Result "1-0"]
[Annotator "RC"]
[ECO "C11"]
[WhiteElo "1999"]
[BlackElo "2144"]
[PlyCount "143"]
[EventDate "2025.01.07"]
[EventType "swiss"]
[EventCountry "CZE"]
[SourceTitle "playchess.com"]
[Source "ChessBase"]
[SourceQuality "1"]
[TimeControl "40/5400+30:1800+30"]

1. e4 {[%emt 0:01:06]} e6 {[%emt 0:00:09]} 2. d4 {[%emt 0:00:12]} d5 {[%emt 0:00:10]} 3. Nc3 {[%emt 0:00:07]} Nf6 {[%emt 0:00:19]} 4. Bg5 {[%emt 0:00:11]} h6 {[%emt 0:00:13]} 5. Bxf6 {[%emt 0:01:09]} Qxf6 {[%emt 0:00:12]} 6. exd5 {[%emt 0:06:28]} Bb4 {[%emt 0:00:09]} 7. dxe6 {[%emt 0:02:09]} Bxe6 {[%emt 0:00:08]} 8. Nf3 {[%emt 0:10:39]} O-O {[%emt 0:00:27]} 9. Be2 {[%emt 0:05:41]} c5 {[%emt 0:00:54]} 10. O-O {[%emt 0:21:19]} Bxc3 {[%emt 0:01:31]} 11. bxc3 {[%emt 0:00:07]} Rd8 {[%emt 0:02:05]} 12. Qb1 {[%emt 0:13:17]} Nc6 {[%emt 0:05:52]} 13. Qxb7 {[%emt 0:03:10]} Bd5 {[%emt 0:01:06]} 14. Qa6 {[%emt 0:01:57]} cxd4 {[%emt 0:09:43]} 15. cxd4 {[%emt 0:01:49]} Rd6 {[%emt 0:02:21]} 16. Qd3 {[%emt 0:05:55]} Re8 {[%emt 0:02:06]} 17. c3 {[%emt 0:03:22]} Rde6 {[%emt 0:02:59]} 18. Qb5 {[%emt 0:03:15]} Qd8 {[%emt 0:10:57]} 19. Bc4 {[%emt 0:04:13]} Ne7 {[%emt 0:09:39]} 20. Ne5 {[%emt 0:03:00]} Qa8 {[%emt 0:02:42]} 21. Rfe1 {[%emt 0:04:36]} Bxc4 {[%emt 0:11:55]} 22. Qxc4 {[%emt 0:00:39]} Nd5 {[%emt 0:03:38]} 23. Qd3 {[%emt 0:04:35]} f6 {[%emt 0:13:21]} 24. Nf3 {[%emt 0:00:19]} Nf4 {[%emt 0:00:34]} 25. Qc4 {[%emt 0:02:19]} Kh8 {[%emt 0:00:32]} 26. Rxe6 {[%emt 0:00:24]} Rxe6 {[%emt 0:00:01]} 27. Rd1 {[%emt 0:01:10]} Qe4 {[%emt 0:02:46]} 28. Qf1 {[%emt 0:00:46]} Qg6 {[%emt 0:07:31]} 29. Kh1 {[%emt 0:00:28]} Re2 {[%emt 0:02:40]} 30. Rd2 {[%emt 0:00:32]} Re4 {[%emt 0:02:10]} 31. d5 {[%emt 0:00:19]} Re8 {[%emt 0:02:11]} 32. d6 {[%emt 0:00:24]} Rd8 {[%emt 0:00:14]} 33. c4 {[%emt 0:00:34]} Qf5 {[%emt 0:00:57]} 34. Rd4 {[%emt 0:00:43]} Rb8 {[%emt 0:02:01]} 35. d7 {[%emt 0:00:25]} Ne6 {[%emt 0:00:08]} 36. Rd1 Rd8 {[%emt 0:01:11]} 37. Qe2 {[%emt 0:00:57]} Kh7 {[%emt 0:00:45]} 38. Nh4 {[%emt 0:00:27]} Qe5 {[%emt 0:01:54]} 39. Qd3+ {[%emt 0:00:24]} Kg8 {[%emt 0:00:14]} 40. Ng6 {[%emt 0:00:36]} Qc5 {[%emt 0:00:57]} 41. Qe4 {[%emt 0:06:10]} Kf7 {[%emt 0:03:27]} 42. f4 {[%emt 0:05:45]} f5 {[%emt 0:02:35]} 43. Ne5+ {[%emt 0:00:27]} Kf6 {[%emt 0:00:23]} 44. Qd5 {[%emt 0:08:22]} Qxd5 {[%emt 0:01:13]} 45. Rxd5 {[%emt 0:00:38]} Nxf4 {[%emt 0:00:21]} 46. Nc6 {[%emt 0:00:07]} Nxd5 {[%emt 0:00:14]} 47. Nxd8 {[%emt 0:00:04]} Nb6 {[%emt 0:01:12]} 48. Nc6 {[%emt 0:02:08]} Nxd7 {[%emt 0:00:23]} 49. Nxa7 {[%emt 0:00:02]} Nc5 {[%emt 0:01:56]} 50. Nc6 {[%emt 0:01:19]} g5 {[%emt 0:00:50]} 51. Kg1 {[%emt 0:00:16]} f4 {[%emt 0:01:30]} 52. Kf2 {[%emt 0:05:27]} Kf5 {[%emt 0:01:05]} 53. Nd4+ {[%emt 0:00:27]} Ke4 {[%emt 0:04:20]} 54. Nb3 {[%emt 0:00:04]} Nd3+ {[%emt 0:01:47]} 55. Ke2 {[%emt 0:00:05]} g4 {[%emt 0:01:10]} 56. c5 {[%emt 0:00:24]} f3+ {[%emt 0:02:55]} 57. gxf3+ {[%emt 0:00:03]} gxf3+ {[%emt 0:00:09]} 58. Kf1 {[%emt 0:01:40]} Ne5 {[%emt 0:02:07]} 59. h3 {[%emt 0:03:37]} Ke3 {[%emt 0:07:17]} 60. Na5 {[%emt 0:00:06]} Nd7 {[%emt 0:05:19]} 61. c6 {[%emt 0:00:10]} Nb6 {[%emt 0:00:30]} 62. c7 {[%emt 0:00:26]} f2 {[%emt 0:00:50]} 63. Nb3 {[%emt 0:03:16]} Kf3 {[%emt 0:00:28]} 64. Nd4+ {[%emt 0:00:37]} Kg3 {[%emt 0:00:30]} 65. Nf5+ {[%emt 0:00:25]} Kf3 {[%emt 0:00:17]} 66. Nd4+ {[%emt 0:00:03]} Kg3 {[%emt 0:00:19]} 67. a4 {[%emt 0:01:15]} Nc4 {[%emt 0:00:57]} 68. c8=Q {[%emt 0:00:19]} Ne3+ {[%emt 0:00:30]} 69. Ke2 {[%emt 0:00:03]} f1=Q+ {[%emt 0:00:03]} 70. Kxe3 {[%emt 0:00:03]} Qe1+ {[%emt 0:00:39]} 71. Ne2+ {[%emt 0:00:19]} Kh2 {[%emt 0:00:42]} 72. Qg4 {[%emt 0:00:26]} 1-0

[Event "Prague Open 2025"]
[Site "Prague"]
[Date "2025.01.11"]
[Round "3.21"]
[White "Topencik, Bruno"]
[Black "Arndt, Stefan"]
[Result "1-0"]
[Annotator "NA"]
[ECO "B12"]
[WhiteElo "1985"]
[BlackElo "2132"]
[PlyCount "69"]
[EventDate "2025.01.07"]
[EventType "swiss"]
[EventCountry "CZE"]
[SourceTitle "playchess.com"]
[Source "ChessBase"]
[SourceQuality "1"]
[TimeControl "40/5400+30:1800+30"]

1. e4 {[%emt 0:00:03]} c6 {[%emt 0:00:11]} 2. d4 {[%emt 0:01:18]} d5 {[%emt 0:00:05]} 3. e5 {[%emt 0:00:10]} Bf5 {[%emt 0:00:10]} 4. c4 {[%emt 0:00:41]} e6 {[%emt 0:00:11]} 5. Nc3 {[%emt 0:00:12]} Ne7 {[%emt 0:00:12]} 6. a3 {[%emt 0:00:38]} dxc4 {[%emt 0:00:08]} 7. Bxc4 {[%emt 0:00:09]} Nd7 {[%emt 0:00:06]} 8. Nge2 {[%emt 0:00:48]} Nb6 {[%emt 0:00:31]} 9. Bb3 {[%emt 0:00:18]} Qd7 {[%emt 0:04:41]} 10. O-O {[%emt 0:02:35]} O-O-O {[%emt 0:04:57]} 11. Be3 {[%emt 0:03:49]} h6 {[%emt 0:05:24]} 12. a4 {[%emt 0:01:36]} Nbd5 {[%emt 0:06:19]} 13. a5 {[%emt 0:03:50]} Bg4 {[%emt 0:06:23]} 14. Qd2 {[%emt 0:06:14]} Bxe2 {[%emt 0:08:35]} 15. Qxe2 {[%emt 0:01:58]} Kb8 {[%emt 0:06:33]} 16. Bc2 {[%emt 0:05:39]} g5 {[%emt 0:05:22]} 17. Ne4 {[%emt 0:04:13]} Nf5 {[%emt 0:00:32]} 18. Rfd1 {[%emt 0:01:09]} Qc7 {[%emt 0:02:23]} 19. Ng3 {[%emt 0:09:03]} Ndxe3 {[%emt 0:03:51]} 20. fxe3 {[%emt 0:00:08]} Nxg3 {[%emt 0:00:04]} 21. hxg3 {[%emt 0:00:07]} h5 {[%emt 0:00:38]} 22. a6 {[%emt 0:02:12]} b6 {[%emt 0:09:34]} 23. Rac1 {[%emt 0:05:40]} Bb4 {[%emt 0:08:07]} 24. Be4 {[%emt 0:12:39]} c5 {[%emt 0:02:20]} 25. Rf1 {[%emt 0:01:22]} f5 {[%emt 0:01:29]} 26. exf6 {[%emt 0:02:38]} Qxg3 {[%emt 0:00:30]} 27. Rcd1 {[%emt 0:07:12]} cxd4 {[%emt 0:00:49]} 28. Rxd4 {[%emt 0:08:51]} Bc5 {[%emt 0:02:22]} 29. Rfd1 {[%emt 0:06:00]} Bxd4 {[%emt 0:02:09]} 30. exd4 {[%emt 0:00:13]} Qf4 {[%emt 0:02:16]} 31. Rf1 {[%emt 0:03:29]} Qd6 {[%emt 0:00:07]} 32. Rd1 {[%emt 0:01:55]} e5 {[%emt 0:03:03]} 33. Bf3 {[%emt 0:01:33]} Rd7 {[%emt 0:07:55]} 34. Qe4 {[%emt 0:00:13]} Qxf6 {[%emt 0:01:28]} 35. Rc1 {[%emt 0:02:42]} 1-0